[Event "Titled Tuesday Blitz November 15 Early 2022"]
[White "Moksh Amit Doshi"]
[Black "Izuzquiza Gonzalez, Javier"]
[WhiteFideId "25064967"]
[BlackFideId "3101029"]
[WhiteElo "2330"]
[BlackElo "2034"]
[Result "1/2-1/2"]
[Round "03"]
[TimeControl "180+1"]
[Date "2022.11.16"]
[WhiteClock "0:00:17"]
[BlackClock "0:00:12"]

1. d4 {[%clk 0:03:00]}  Nf6 {[%clk 0:02:51]} 2. Nf3 {[%clk 0:03:00]}  d5 {[%clk 0:02:50]} 3. Bf4 {[%clk 0:03:00]}  g6 {[%clk 0:02:48]} 4. e3 {[%clk 0:02:57]}  Bg7 {[%clk 0:02:47]} 5. h3 {[%clk 0:02:53]}  O-O {[%clk 0:02:44]} 6. Bd3 {[%clk 0:02:47]}  c5 {[%clk 0:02:44]} 7. O-O {[%clk 0:02:45]}  b6 {[%clk 0:02:40]} 8. c3 {[%clk 0:02:44]}  Nc6 {[%clk 0:02:39]} 9. Nbd2 {[%clk 0:02:43]}  Bb7 {[%clk 0:02:38]} 10. Qe2 {[%clk 0:02:34]}  Re8 {[%clk 0:02:34]} 11. Rfd1 {[%clk 0:02:28]}  Nd7 {[%clk 0:02:27]} 12. Ba6 {[%clk 0:02:13]}  Qc8 {[%clk 0:02:22]} 13. Bxb7 {[%clk 0:02:08]}  Qxb7 {[%clk 0:02:23]} 14. Bh2 {[%clk 0:01:53]}  Rad8 {[%clk 0:02:16]} 15. Rab1 {[%clk 0:01:35]}  e5 {[%clk 0:02:12]} 16. dxe5 {[%clk 0:01:36]}  Ndxe5 {[%clk 0:02:10]} 17. Nxe5 {[%clk 0:01:36]}  Nxe5 {[%clk 0:02:11]} 18. Nf3 {[%clk 0:01:37]}  Nc4 {[%clk 0:01:46]} 19. Rd3 {[%clk 0:01:26]}  Nd6 {[%clk 0:00:56]} 20. Bxd6 {[%clk 0:01:21]}  Rxd6 {[%clk 0:00:56]} 21. Rbd1 {[%clk 0:01:21]}  Red8 {[%clk 0:00:56]} 22. c4 {[%clk 0:00:56]}  Qa6 {[%clk 0:00:20]} 23. b3 {[%clk 0:00:53]}  d4 {[%clk 0:00:20]} 24. exd4 {[%clk 0:00:52]}  Bxd4 {[%clk 0:00:19]} 25. Nxd4 {[%clk 0:00:51]}  Rxd4 {[%clk 0:00:19]} 26. Rxd4 {[%clk 0:00:51]}  Rxd4 {[%clk 0:00:20]} 27. Qe8+ {[%clk 0:00:42]}  Kg7 {[%clk 0:00:19]} 28. Qe5+ {[%clk 0:00:43]}  Kg8 {[%clk 0:00:19]} 29. Rxd4 {[%clk 0:00:41]}  cxd4 {[%clk 0:00:20]} 30. a4 {[%clk 0:00:41]}  d3 {[%clk 0:00:16]} 31. Qe8+ {[%clk 0:00:36]}  Kg7 {[%clk 0:00:15]} 32. Qd7 {[%clk 0:00:37]}  Qa5 {[%clk 0:00:14]} 33. Qxd3 {[%clk 0:00:37]}  Qe1+ {[%clk 0:00:14]} 34. Kh2 {[%clk 0:00:36]}  Qxf2 {[%clk 0:00:15]} 35. Qg3 {[%clk 0:00:20]}  Qd4 {[%clk 0:00:12]} 36. Qc7 {[%clk 0:00:19]}  a5 {[%clk 0:00:10]} 37. Kg3 {[%clk 0:00:18]}  Qe3+ {[%clk 0:00:10]} 38. Kh2 {[%clk 0:00:14]}  Qxb3 {[%clk 0:00:11]} 39. Qe5+ {[%clk 0:00:15]}  Kg8 {[%clk 0:00:11]} 40. Qb8+ {[%clk 0:00:15]}  Kg7 {[%clk 0:00:12]} 41. Qe5+ {[%clk 0:00:16]}  Kg8 {[%clk 0:00:12]} 42. Qb8+ {[%clk 0:00:16]}  Kg7 {[%clk 0:00:12]} 43. Qe5+ {[%clk 0:00:17]} 1/2-1/2


[Site "https://www.chess.com"]

[Event "Titled Tuesday Blitz November 15 Early 2022"]
[White "Mrudul Dehankar"]
[Black "Rakhmatullaev, Almas"]
[WhiteFideId "25096990"]
[BlackFideId "14205793"]
[WhiteElo "2068"]
[BlackElo "2221"]
[Result "0-1"]
[Round "03"]
[TimeControl "180+1"]
[Date "2022.11.16"]
[WhiteClock "0:00:01"]
[BlackClock "0:02:02"]

1. e4 {[%clk 0:03:00]}  e5 {[%clk 0:02:59]} 2. Nf3 {[%clk 0:02:59]}  Nc6 {[%clk 0:03:00]} 3. Bb5 {[%clk 0:02:59]}  a6 {[%clk 0:03:00]} 4. Ba4 {[%clk 0:03:00]}  Nf6 {[%clk 0:03:00]} 5. O-O {[%clk 0:03:00]}  b5 {[%clk 0:03:00]} 6. Bb3 {[%clk 0:03:00]}  Bb7 {[%clk 0:03:00]} 7. Re1 {[%clk 0:02:53]}  Bc5 {[%clk 0:03:00]} 8. c3 {[%clk 0:02:53]}  d6 {[%clk 0:03:00]} 9. d4 {[%clk 0:02:51]}  Bb6 {[%clk 0:03:01]} 10. a4 {[%clk 0:02:51]}  O-O {[%clk 0:03:00]} 11. Na3 {[%clk 0:02:32]}  b4 {[%clk 0:02:59]} 12. Nc4 {[%clk 0:02:24]}  bxc3 {[%clk 0:03:00]} 13. bxc3 {[%clk 0:02:22]}  exd4 {[%clk 0:03:00]} 14. Nxb6 {[%clk 0:02:14]}  cxb6 {[%clk 0:02:54]} 15. cxd4 {[%clk 0:02:14]}  d5 {[%clk 0:02:50]} 16. e5 {[%clk 0:01:44]}  Ne4 {[%clk 0:02:50]} 17. Ba3 {[%clk 0:01:40]}  Re8 {[%clk 0:02:50]} 18. Rc1 {[%clk 0:01:29]}  Na5 {[%clk 0:02:48]} 19. Ba2 {[%clk 0:01:29]}  Rc8 {[%clk 0:02:46]} 20. Qd3 {[%clk 0:01:20]}  Qd7 {[%clk 0:02:43]} 21. Nd2 {[%clk 0:00:13]}  Qxa4 {[%clk 0:02:32]} 22. Bb1 {[%clk 0:00:10]}  Rxc1 {[%clk 0:02:19]} 23. Rxc1 {[%clk 0:00:08]}  Rc8 {[%clk 0:02:19]} 24. Re1 {[%clk 0:00:04]}  Rc3 {[%clk 0:02:14]} 25. Qe2 {[%clk 0:00:01]}  Rxa3 {[%clk 0:02:02]} 0-1


[Site "https://www.chess.com"]

[Event "Titled Tuesday Blitz November 15 Early 2022"]
[White "Ovchinnikov, Vsevolod"]
[Black "Mohammed, Zozek Salah Mohammed"]
[WhiteFideId "24176842"]
[BlackFideId "4803361"]
[WhiteElo "2376"]
[BlackElo "2199"]
[Result "1-0"]
[Round "03"]
[TimeControl "180+1"]
[Date "2022.11.16"]
[WhiteClock "0:00:15"]
[BlackClock "0:00:13"]

1. d4 {[%clk 0:03:00]}  Nf6 {[%clk 0:02:58]} 2. c4 {[%clk 0:03:00]}  g6 {[%clk 0:02:57]} 3. Nc3 {[%clk 0:02:59]}  d5 {[%clk 0:02:57]} 4. Nf3 {[%clk 0:03:00]}  Bg7 {[%clk 0:02:55]} 5. h4 {[%clk 0:03:00]}  c5 {[%clk 0:02:51]} 6. dxc5 {[%clk 0:02:59]}  Be6 {[%clk 0:02:35]} 7. Ng5 {[%clk 0:02:51]}  Bf5 {[%clk 0:02:28]} 8. cxd5 {[%clk 0:02:42]}  Qa5 {[%clk 0:02:29]} 9. Bd2 {[%clk 0:02:02]}  Qxc5 {[%clk 0:02:26]} 10. e4 {[%clk 0:01:54]}  Bd7 {[%clk 0:02:20]} 11. Be3 {[%clk 0:01:47]}  Qb4 {[%clk 0:02:17]} 12. Qb3 {[%clk 0:01:47]}  Qxb3 {[%clk 0:02:06]} 13. axb3 {[%clk 0:01:48]}  O-O {[%clk 0:02:06]} 14. f3 {[%clk 0:01:38]}  h6 {[%clk 0:02:06]} 15. Nh3 {[%clk 0:01:38]}  e6 {[%clk 0:02:06]} 16. dxe6 {[%clk 0:01:35]}  Bxe6 {[%clk 0:02:07]} 17. Nf4 {[%clk 0:01:36]}  Bxb3 {[%clk 0:02:05]} 18. Rxa7 {[%clk 0:01:28]}  Rxa7 {[%clk 0:02:01]} 19. Bxa7 {[%clk 0:01:29]}  Nc6 {[%clk 0:02:02]} 20. Be3 {[%clk 0:01:21]}  Ra8 {[%clk 0:02:02]} 21. Kf2 {[%clk 0:01:12]}  Ra1 {[%clk 0:01:59]} 22. g4 {[%clk 0:00:59]}  Ne5 {[%clk 0:01:36]} 23. g5 {[%clk 0:00:47]}  hxg5 {[%clk 0:01:28]} 24. hxg5 {[%clk 0:00:48]}  Nfd7 {[%clk 0:01:00]} 25. Rg1 {[%clk 0:00:47]}  Bf8 {[%clk 0:00:45]} 26. Be2 {[%clk 0:00:39]}  Rxg1 {[%clk 0:00:43]} 27. Kxg1 {[%clk 0:00:40]}  Nc4 {[%clk 0:00:37]} 28. Bxc4 {[%clk 0:00:37]}  Bxc4 {[%clk 0:00:38]} 29. Kf2 {[%clk 0:00:37]}  Ne5 {[%clk 0:00:36]} 30. Bd4 {[%clk 0:00:33]}  Nd3+ {[%clk 0:00:32]} 31. Nxd3 {[%clk 0:00:33]}  Bxd3 {[%clk 0:00:32]} 32. Nd5 {[%clk 0:00:31]}  Bd6 {[%clk 0:00:28]} 33. Ke3 {[%clk 0:00:28]}  Bf1 {[%clk 0:00:26]} 34. f4 {[%clk 0:00:24]}  Kf8 {[%clk 0:00:25]} 35. b4 {[%clk 0:00:20]}  Bc4 {[%clk 0:00:23]} 36. Bc5 {[%clk 0:00:20]}  Bxc5+ {[%clk 0:00:17]} 37. bxc5 {[%clk 0:00:20]}  Ke8 {[%clk 0:00:17]} 38. Kd4 {[%clk 0:00:20]}  Ba2 {[%clk 0:00:15]} 39. Ke5 {[%clk 0:00:20]}  Kd7 {[%clk 0:00:15]} 40. Kf6 {[%clk 0:00:15]}  Kc6 {[%clk 0:00:15]} 41. Nb4+ {[%clk 0:00:15]}  Kxc5 {[%clk 0:00:13]} 42. Nxa2 {[%clk 0:00:15]} 1-0


[Site "https://www.chess.com"]

[Event "Titled Tuesday Blitz November 15 Early 2022"]
[White "Perez Rodriguez, Jennifer"]
[Black "Maksimovic, Bojan"]
[WhiteFideId "3507831"]
[BlackFideId "14408120"]
[WhiteElo "2170"]
[BlackElo "2447"]
[Result "0-1"]
[Round "03"]
[TimeControl "180+1"]
[Date "2022.11.16"]
[WhiteClock "0:00:32"]
[BlackClock "0:00:18"]

1. e4 {[%clk 0:03:00]}  d6 {[%clk 0:03:00]} 2. d4 {[%clk 0:03:00]}  Nf6 {[%clk 0:03:01]} 3. Nc3 {[%clk 0:02:59]}  e5 {[%clk 0:03:01]} 4. dxe5 {[%clk 0:02:58]}  dxe5 {[%clk 0:03:02]} 5. Qxd8+ {[%clk 0:02:59]}  Kxd8 {[%clk 0:03:02]} 6. Bc4 {[%clk 0:02:59]}  Ke8 {[%clk 0:02:59]} 7. Nf3 {[%clk 0:02:55]}  Bd6 {[%clk 0:02:53]} 8. Bg5 {[%clk 0:02:41]}  c6 {[%clk 0:02:52]} 9. O-O-O {[%clk 0:02:41]}  Bc7 {[%clk 0:02:52]} 10. a4 {[%clk 0:02:26]}  Nbd7 {[%clk 0:02:49]} 11. b4 {[%clk 0:02:25]}  h6 {[%clk 0:02:46]} 12. Bd2 {[%clk 0:02:18]}  Ke7 {[%clk 0:02:46]} 13. Kb2 {[%clk 0:02:17]}  Nb6 {[%clk 0:02:45]} 14. Bb3 {[%clk 0:02:16]}  Be6 {[%clk 0:02:46]} 15. a5 {[%clk 0:02:15]}  Nc4+ {[%clk 0:02:45]} 16. Ka2 {[%clk 0:02:08]}  b6 {[%clk 0:02:22]} 17. a6 {[%clk 0:02:04]}  Bd6 {[%clk 0:02:20]} 18. b5 {[%clk 0:01:45]}  Nxd2 {[%clk 0:01:45]} 19. Rxd2 {[%clk 0:01:41]}  Bb4 {[%clk 0:01:45]} 20. Rd3 {[%clk 0:01:42]}  Bxc3 {[%clk 0:01:20]} 21. Rxc3 {[%clk 0:01:41]}  cxb5 {[%clk 0:01:17]} 22. Nxe5 {[%clk 0:01:26]}  Nxe4 {[%clk 0:01:17]} 23. Re3 {[%clk 0:01:12]}  Nc5 {[%clk 0:01:11]} 24. Bxe6 {[%clk 0:00:54]}  Nxe6 {[%clk 0:01:07]} 25. Rhe1 {[%clk 0:00:52]}  Rhc8 {[%clk 0:01:04]} 26. Nxf7 {[%clk 0:00:41]}  Kxf7 {[%clk 0:01:01]} 27. Rxe6 {[%clk 0:00:40]}  Rxc2+ {[%clk 0:01:02]} 28. Kb3 {[%clk 0:00:40]}  Rxf2 {[%clk 0:00:45]} 29. Re7+ {[%clk 0:00:40]}  Kg8 {[%clk 0:00:46]} 30. Rb7 {[%clk 0:00:36]}  Rxg2 {[%clk 0:00:29]} 31. Ree7 {[%clk 0:00:36]}  Rf8 {[%clk 0:00:20]} 32. Rxa7 {[%clk 0:00:31]}  Rf3+ {[%clk 0:00:19]} 33. Kb4 {[%clk 0:00:32]}  Rb2# {[%clk 0:00:18]} 0-1


[Site "https://www.chess.com"]

[Event "Titled Tuesday Blitz November 15 Early 2022"]
[White "Petrosyan, Manuel"]
[Black "Fernandez Guillen, Ernesto J."]
[WhiteFideId "13300857"]
[BlackFideId "3512428"]
[WhiteElo "2561"]
[BlackElo "2450"]
[Result "1/2-1/2"]
[Round "03"]
[TimeControl "180+1"]
[Date "2022.11.15"]
[WhiteClock "0:00:04"]
[BlackClock "0:00:21"]

1. Nf3 {[%clk 0:02:56]}  Nf6 {[%clk 0:02:55]} 2. g3 {[%clk 0:02:56]}  g6 {[%clk 0:02:54]} 3. Bg2 {[%clk 0:02:56]}  Bg7 {[%clk 0:02:55]} 4. O-O {[%clk 0:02:56]}  O-O {[%clk 0:02:55]} 5. c4 {[%clk 0:02:57]}  d5 {[%clk 0:02:56]} 6. cxd5 {[%clk 0:02:57]}  Nxd5 {[%clk 0:02:57]} 7. d4 {[%clk 0:02:55]}  c6 {[%clk 0:02:57]} 8. e4 {[%clk 0:02:54]}  Nb6 {[%clk 0:02:57]} 9. h3 {[%clk 0:02:52]}  N8d7 {[%clk 0:02:57]} 10. Nc3 {[%clk 0:02:52]}  e5 {[%clk 0:02:55]} 11. d5 {[%clk 0:02:36]}  cxd5 {[%clk 0:02:53]} 12. exd5 {[%clk 0:02:37]}  f5 {[%clk 0:02:40]} 13. Ng5 {[%clk 0:02:32]}  Nf6 {[%clk 0:02:38]} 14. Qb3 {[%clk 0:02:16]}  Kh8 {[%clk 0:02:24]} 15. Be3 {[%clk 0:01:44]}  f4 {[%clk 0:02:13]} 16. Bc5 {[%clk 0:01:37]}  h6 {[%clk 0:01:54]} 17. Bxf8 {[%clk 0:01:37]}  hxg5 {[%clk 0:01:46]} 18. Bxg7+ {[%clk 0:01:29]}  Kxg7 {[%clk 0:01:47]} 19. Rad1 {[%clk 0:01:27]}  Qh8 {[%clk 0:01:34]} 20. Qb4 {[%clk 0:00:37]}  Kf7 {[%clk 0:01:31]} 21. Qd6 {[%clk 0:00:19]}  Bxh3 {[%clk 0:01:25]} 22. Qxe5 {[%clk 0:00:18]}  Bxg2 {[%clk 0:00:26]} 23. Kxg2 {[%clk 0:00:18]}  f3+ {[%clk 0:00:26]} 24. Kg1 {[%clk 0:00:19]}  Nbd7 {[%clk 0:00:23]} 25. Qe6+ {[%clk 0:00:17]}  Kg7 {[%clk 0:00:24]} 26. Qe7+ {[%clk 0:00:16]}  Kg8 {[%clk 0:00:23]} 27. Rfe1 {[%clk 0:00:13]}  g4 {[%clk 0:00:22]} 28. Qe6+ {[%clk 0:00:08]}  Kg7 {[%clk 0:00:22]} 29. Qe7+ {[%clk 0:00:08]}  Kg8 {[%clk 0:00:22]} 30. Qe6+ {[%clk 0:00:03]}  Kg7 {[%clk 0:00:22]} 31. Qe7+ {[%clk 0:00:04]}  Kg8 {[%clk 0:00:21]} 1/2-1/2


[Site "https://www.chess.com"]

[Event "Titled Tuesday Blitz November 15 Early 2022"]
[White "Piesik, Piotr"]
[Black "Chernomordik, Pavel"]
[WhiteFideId "1136194"]
[BlackFideId "2804530"]
[WhiteElo "2316"]
[BlackElo "2192"]
[Result "1/2-1/2"]
[Round "03"]
[TimeControl "180+1"]
[Date "2022.11.16"]
[WhiteClock "0:00:21"]
[BlackClock "0:00:14"]

1. Nf3 {[%clk 0:02:42]}  g6 {[%clk 0:03:00]} 2. g3 {[%clk 0:02:42]}  Bg7 {[%clk 0:03:00]} 3. d4 {[%clk 0:02:43]}  d6 {[%clk 0:02:59]} 4. Bg2 {[%clk 0:02:44]}  Nf6 {[%clk 0:02:59]} 5. O-O {[%clk 0:02:44]}  O-O {[%clk 0:02:58]} 6. Nbd2 {[%clk 0:02:45]}  c5 {[%clk 0:02:53]} 7. dxc5 {[%clk 0:02:44]}  dxc5 {[%clk 0:02:53]} 8. e4 {[%clk 0:02:45]}  Nc6 {[%clk 0:02:51]} 9. c3 {[%clk 0:02:45]}  Qc7 {[%clk 0:02:47]} 10. Qc2 {[%clk 0:02:40]}  Rd8 {[%clk 0:02:39]} 11. Re1 {[%clk 0:02:39]}  Rb8 {[%clk 0:02:34]} 12. a4 {[%clk 0:02:38]}  b6 {[%clk 0:02:33]} 13. Nc4 {[%clk 0:02:38]}  Be6 {[%clk 0:02:26]} 14. Bf4 {[%clk 0:02:37]}  Qc8 {[%clk 0:02:23]} 15. Bxb8 {[%clk 0:02:34]}  Bxc4 {[%clk 0:02:22]} 16. Be5 {[%clk 0:02:19]}  Bd3 {[%clk 0:02:10]} 17. Qc1 {[%clk 0:02:15]}  Nxe4 {[%clk 0:02:02]} 18. Bxg7 {[%clk 0:02:13]}  Kxg7 {[%clk 0:02:02]} 19. Qf4 {[%clk 0:02:03]}  f5 {[%clk 0:01:59]} 20. Ne5 {[%clk 0:01:55]}  g5 {[%clk 0:01:53]} 21. Qe3 {[%clk 0:01:28]}  Nxe5 {[%clk 0:01:52]} 22. Bxe4 {[%clk 0:01:28]}  fxe4 {[%clk 0:01:40]} 23. Qxg5+ {[%clk 0:01:27]}  Ng6 {[%clk 0:01:40]} 24. a5 {[%clk 0:01:18]}  b5 {[%clk 0:01:38]} 25. b4 {[%clk 0:01:10]}  h6 {[%clk 0:01:31]} 26. Qh5 {[%clk 0:00:50]}  Qc6 {[%clk 0:01:12]} 27. Rad1 {[%clk 0:00:46]}  Rd5 {[%clk 0:01:09]} 28. Qg4 {[%clk 0:00:41]}  h5 {[%clk 0:01:08]} 29. Qh3 {[%clk 0:00:35]}  Ne5 {[%clk 0:01:07]} 30. Re3 {[%clk 0:00:31]}  Nf3+ {[%clk 0:00:55]} 31. Kg2 {[%clk 0:00:26]}  cxb4 {[%clk 0:00:45]} 32. cxb4 {[%clk 0:00:25]}  Qc2 {[%clk 0:00:22]} 33. Qe6 {[%clk 0:00:25]}  Qxd1 {[%clk 0:00:20]} 34. Qxe7+ {[%clk 0:00:25]}  Kg8 {[%clk 0:00:18]} 35. Qe8+ {[%clk 0:00:24]}  Kg7 {[%clk 0:00:18]} 36. Qe7+ {[%clk 0:00:24]}  Kg6 {[%clk 0:00:16]} 37. Qe6+ {[%clk 0:00:23]}  Kg7 {[%clk 0:00:14]} 38. Qe7+ {[%clk 0:00:21]} 1/2-1/2


[Site "https://www.chess.com"]

[Event "Titled Tuesday Blitz November 15 Early 2022"]
[White "Quintiliano Pinto, Renato R."]
[Black "Madaminov, Mukhiddin"]
[WhiteFideId "2117568"]
[BlackFideId "14210703"]
[WhiteElo "2472"]
[BlackElo "2341"]
[Result "0-1"]
[Round "03"]
[TimeControl "180+1"]
[Date "2022.11.15"]
[WhiteClock "0:01:15"]
[BlackClock "0:01:17"]

1. e4 {[%clk 0:03:00]}  e5 {[%clk 0:02:59]} 2. Nf3 {[%clk 0:03:00]}  Nc6 {[%clk 0:03:00]} 3. Bc4 {[%clk 0:03:01]}  Nf6 {[%clk 0:02:59]} 4. d3 {[%clk 0:03:01]}  h6 {[%clk 0:02:59]} 5. h3 {[%clk 0:02:59]}  d6 {[%clk 0:02:51]} 6. c3 {[%clk 0:02:59]}  g5 {[%clk 0:02:50]} 7. Nbd2 {[%clk 0:02:57]}  Bg7 {[%clk 0:02:48]} 8. a4 {[%clk 0:02:56]}  O-O {[%clk 0:02:46]} 9. b4 {[%clk 0:02:56]}  d5 {[%clk 0:02:44]} 10. exd5 {[%clk 0:02:56]}  Nxd5 {[%clk 0:02:45]} 11. Ne4 {[%clk 0:02:50]}  Nce7 {[%clk 0:02:44]} 12. Bd2 {[%clk 0:02:44]}  Ng6 {[%clk 0:02:43]} 13. Bxg5 {[%clk 0:02:04]}  hxg5 {[%clk 0:02:40]} 14. Nfxg5 {[%clk 0:02:05]}  Bf5 {[%clk 0:02:21]} 15. Qf3 {[%clk 0:01:52]}  Bxe4 {[%clk 0:02:09]} 16. Nxe4 {[%clk 0:01:50]}  c6 {[%clk 0:02:05]} 17. h4 {[%clk 0:01:46]}  f5 {[%clk 0:02:00]} 18. Ng5 {[%clk 0:01:43]}  Rf6 {[%clk 0:01:44]} 19. O-O {[%clk 0:01:32]}  Nxh4 {[%clk 0:01:39]} 20. Qh5 {[%clk 0:01:31]}  Rh6 {[%clk 0:01:38]} 21. Qf7+ {[%clk 0:01:29]}  Kh8 {[%clk 0:01:38]} 22. Ne6 {[%clk 0:01:24]}  Rxe6 {[%clk 0:01:21]} 23. Qxe6 {[%clk 0:01:24]}  Nf4 {[%clk 0:01:21]} 24. Qf7 {[%clk 0:01:15]}  Nf3+ {[%clk 0:01:17]} 0-1


[Site "https://www.chess.com"]

[Event "Titled Tuesday Blitz November 15 Early 2022"]
[White "Quispe Santacruz, Javier"]
[Black "Koridze, Lile"]
[WhiteFideId "3800920"]
[BlackFideId "13612514"]
[WhiteElo "1930"]
[BlackElo "2050"]
[Result "1-0"]
[Round "03"]
[TimeControl "180+1"]
[Date "2022.11.16"]
[WhiteClock "0:01:09"]
[BlackClock "0:01:17"]

1. d4 {[%clk 0:02:52]}  Nf6 {[%clk 0:03:00]} 2. c4 {[%clk 0:02:52]}  e6 {[%clk 0:03:00]} 3. Nf3 {[%clk 0:02:42]}  d5 {[%clk 0:03:00]} 4. cxd5 {[%clk 0:02:34]}  exd5 {[%clk 0:03:00]} 5. Nc3 {[%clk 0:02:34]}  c6 {[%clk 0:02:58]} 6. Bg5 {[%clk 0:02:33]}  g6 {[%clk 0:02:58]} 7. e3 {[%clk 0:02:32]}  Bf5 {[%clk 0:02:55]} 8. Bd3 {[%clk 0:02:32]}  Bxd3 {[%clk 0:02:55]} 9. Qxd3 {[%clk 0:02:32]}  Bg7 {[%clk 0:02:55]} 10. O-O {[%clk 0:02:30]}  O-O {[%clk 0:02:55]} 11. Rab1 {[%clk 0:02:30]}  Qd6 {[%clk 0:02:51]} 12. Bf4 {[%clk 0:02:27]}  Qe6 {[%clk 0:02:47]} 13. Ng5 {[%clk 0:02:25]}  Qe7 {[%clk 0:02:47]} 14. b4 {[%clk 0:02:18]}  a6 {[%clk 0:02:41]} 15. a4 {[%clk 0:02:17]}  Nbd7 {[%clk 0:02:38]} 16. Rfd1 {[%clk 0:02:14]}  Rfe8 {[%clk 0:02:37]} 17. Nf3 {[%clk 0:02:11]}  Ne4 {[%clk 0:02:37]} 18. Nd2 {[%clk 0:02:05]}  Ndf6 {[%clk 0:02:36]} 19. Ndxe4 {[%clk 0:02:01]}  dxe4 {[%clk 0:02:32]} 20. Qc4 {[%clk 0:01:59]}  Qd7 {[%clk 0:02:29]} 21. b5 {[%clk 0:01:56]}  axb5 {[%clk 0:02:25]} 22. axb5 {[%clk 0:01:56]}  Nd5 {[%clk 0:02:25]} 23. bxc6 {[%clk 0:01:54]}  bxc6 {[%clk 0:02:25]} 24. Bg3 {[%clk 0:01:48]}  Bf6 {[%clk 0:02:01]} 25. Rdc1 {[%clk 0:01:47]}  Rac8 {[%clk 0:01:56]} 26. h3 {[%clk 0:01:45]}  Qf5 {[%clk 0:01:53]} 27. Na4 {[%clk 0:01:32]}  h5 {[%clk 0:01:49]} 28. h4 {[%clk 0:01:31]}  Qg4 {[%clk 0:01:48]} 29. Nb6 {[%clk 0:01:25]}  Nxb6 {[%clk 0:01:34]} 30. Rxb6 {[%clk 0:01:26]}  c5 {[%clk 0:01:31]} 31. Rxf6 {[%clk 0:01:21]}  Re7 {[%clk 0:01:17]} 32. dxc5 {[%clk 0:01:09]} 1-0


[Site "https://www.chess.com"]

[Event "Titled Tuesday Blitz November 15 Early 2022"]
[White "Ravot, Sylvain"]
[Black "Andreev, Eduard"]
[WhiteFideId "627763"]
[BlackFideId "14103400"]
[WhiteElo "2195"]
[BlackElo "2368"]
[Result "0-1"]
[Round "03"]
[TimeControl "180+1"]
[Date "2022.11.16"]
[WhiteClock "0:01:09"]
[BlackClock "0:02:29"]

1. e4 {[%clk 0:03:00]}  c6 {[%clk 0:02:59]} 2. d4 {[%clk 0:02:58]}  d5 {[%clk 0:03:00]} 3. exd5 {[%clk 0:02:58]}  cxd5 {[%clk 0:03:01]} 4. Bd3 {[%clk 0:02:58]}  Nc6 {[%clk 0:03:01]} 5. c3 {[%clk 0:02:59]}  Qc7 {[%clk 0:03:00]} 6. Ne2 {[%clk 0:02:59]}  Nf6 {[%clk 0:02:59]} 7. O-O {[%clk 0:02:59]}  Bg4 {[%clk 0:02:59]} 8. Qe1 {[%clk 0:02:59]}  e6 {[%clk 0:02:56]} 9. f3 {[%clk 0:02:52]}  Bh5 {[%clk 0:02:56]} 10. Qh4 {[%clk 0:02:40]}  Bd6 {[%clk 0:02:51]} 11. Bg5 {[%clk 0:02:32]}  Bg6 {[%clk 0:02:45]} 12. Bxg6 {[%clk 0:02:31]}  fxg6 {[%clk 0:02:46]} 13. Bxf6 {[%clk 0:02:28]}  gxf6 {[%clk 0:02:44]} 14. Qxf6 {[%clk 0:02:29]}  Kd7 {[%clk 0:02:38]} 15. f4 {[%clk 0:01:59]}  Raf8 {[%clk 0:02:34]} 16. Qg7+ {[%clk 0:01:40]}  Ne7 {[%clk 0:02:34]} 17. g3 {[%clk 0:01:29]}  Kc8 {[%clk 0:02:32]} 18. Na3 {[%clk 0:01:22]}  Qb6 {[%clk 0:02:30]} 19. Rab1 {[%clk 0:01:09]}  Nf5 {[%clk 0:02:29]} 0-1


[Site "https://www.chess.com"]

[Event "Titled Tuesday Blitz November 15 Early 2022"]
[White "Rostomyan, Mikayel"]
[Black "parintele_chess"]
[WhiteFideId "13313754"]
[WhiteElo "2009"]
[BlackElo "2223"]
[Result "1-0"]
[Round "03"]
[TimeControl "180+1"]
[Date "2022.11.16"]
[WhiteClock "0:00:37"]
[BlackClock "0:00:07"]

1. e4 {[%clk 0:03:00]}  e5 {[%clk 0:02:59]} 2. Nf3 {[%clk 0:02:58]}  Nc6 {[%clk 0:02:59]} 3. Nc3 {[%clk 0:02:56]}  Nf6 {[%clk 0:02:58]} 4. Bb5 {[%clk 0:02:54]}  Nd4 {[%clk 0:02:52]} 5. Nxd4 {[%clk 0:02:52]}  exd4 {[%clk 0:02:52]} 6. e5 {[%clk 0:02:52]}  dxc3 {[%clk 0:02:48]} 7. exf6 {[%clk 0:02:51]}  Qxf6 {[%clk 0:02:36]} 8. dxc3 {[%clk 0:02:50]}  Qe5+ {[%clk 0:02:28]} 9. Be2 {[%clk 0:02:48]}  Bd6 {[%clk 0:02:24]} 10. g3 {[%clk 0:02:40]}  O-O {[%clk 0:02:09]} 11. Bf4 {[%clk 0:02:39]}  Qe4 {[%clk 0:02:07]} 12. f3 {[%clk 0:02:36]}  Qg6 {[%clk 0:02:02]} 13. Bxd6 {[%clk 0:02:32]}  cxd6 {[%clk 0:02:03]} 14. Qd2 {[%clk 0:02:29]}  Qe6 {[%clk 0:02:00]} 15. Kf2 {[%clk 0:02:07]}  b6 {[%clk 0:01:53]} 16. Bd3 {[%clk 0:02:04]}  Bb7 {[%clk 0:01:48]} 17. Rae1 {[%clk 0:01:59]}  Qf6 {[%clk 0:01:48]} 18. Be4 {[%clk 0:01:56]}  d5 {[%clk 0:01:20]} 19. Bxd5 {[%clk 0:01:52]}  Bxd5 {[%clk 0:01:15]} 20. Qxd5 {[%clk 0:01:53]}  Rae8 {[%clk 0:01:14]} 21. Rxe8 {[%clk 0:01:42]}  Rxe8 {[%clk 0:01:14]} 22. Re1 {[%clk 0:01:42]}  Rf8 {[%clk 0:00:56]} 23. Qxd7 {[%clk 0:01:40]}  Qg6 {[%clk 0:00:47]} 24. Qd3 {[%clk 0:01:35]}  Qh5 {[%clk 0:00:46]} 25. Kg2 {[%clk 0:01:34]}  g6 {[%clk 0:00:43]} 26. b4 {[%clk 0:01:31]}  Qg5 {[%clk 0:00:39]} 27. h4 {[%clk 0:01:29]}  Qf6 {[%clk 0:00:37]} 28. Qd4 {[%clk 0:01:25]}  Qf5 {[%clk 0:00:37]} 29. Re2 {[%clk 0:01:19]}  h5 {[%clk 0:00:24]} 30. g4 {[%clk 0:01:03]}  hxg4 {[%clk 0:00:23]} 31. Qxg4 {[%clk 0:01:04]}  Qb5 {[%clk 0:00:21]} 32. Rf2 {[%clk 0:00:50]}  Qe5 {[%clk 0:00:05]} 33. h5 {[%clk 0:00:48]}  g5 {[%clk 0:00:05]} 34. f4 {[%clk 0:00:47]}  Qe4+ {[%clk 0:00:04]} 35. Kh2 {[%clk 0:00:48]}  f6 {[%clk 0:00:02]} 36. Re2 {[%clk 0:00:42]}  Qc4 {[%clk 0:00:02]} 37. Qe6+ {[%clk 0:00:41]}  Qxe6 {[%clk 0:00:02]} 38. Rxe6 {[%clk 0:00:42]}  gxf4 {[%clk 0:00:02]} 39. Re4 {[%clk 0:00:43]}  f3 {[%clk 0:00:02]} 40. Rf4 {[%clk 0:00:43]}  Rc8 {[%clk 0:00:02]} 41. Rxf3 {[%clk 0:00:44]}  Kf7 {[%clk 0:00:02]} 42. Kg3 {[%clk 0:00:40]}  Ke6 {[%clk 0:00:02]} 43. Kf2 {[%clk 0:00:40]}  Rh8 {[%clk 0:00:02]} 44. Rh3 {[%clk 0:00:39]}  Kf5 {[%clk 0:00:02]} 45. c4 {[%clk 0:00:37]}  Kg4 {[%clk 0:00:03]} 46. Rh1 {[%clk 0:00:34]}  Rxh5 {[%clk 0:00:03]} 47. Rxh5 {[%clk 0:00:33]}  Kxh5 {[%clk 0:00:04]} 48. c5 {[%clk 0:00:32]}  bxc5 {[%clk 0:00:04]} 49. bxc5 {[%clk 0:00:33]}  Kg6 {[%clk 0:00:05]} 50. c6 {[%clk 0:00:33]}  Kf7 {[%clk 0:00:06]} 51. c7 {[%clk 0:00:34]}  Ke7 {[%clk 0:00:06]} 52. c8=Q {[%clk 0:00:35]}  Kd6 {[%clk 0:00:06]} 53. Qa8 {[%clk 0:00:36]}  Kc7 {[%clk 0:00:06]} 54. Qxa7+ {[%clk 0:00:36]}  Kd8 {[%clk 0:00:07]} 55. Qe3 {[%clk 0:00:37]} 1-0


[Site "https://www.chess.com"]